lending/lending_fUSD_20250318
["ID","MTS","AMOUNT","RATE_DAILY","PERIOD"]
[356359338,1742339432119,-524.31716395,0.000239,3]
[356359339,1742339432129,-524.31716385,0.00024693,3]
[356359340,1742339432140,-607.3156722,0.00024693,2]
[356359341,1742339432172,-2046.83155455,0.00024693,2]
[356359342,1742339432191,-712.24024169,0.00024693,2]
[356359343,1742339432203,-472.4999982,0.00024693,2]
[356359344,1742339432214,-585.49977958,0.00024693,2]
[356359345,1742339432225,-384.54,0.00024693,2]
[356359351,1742339437974,-3987.2,0.00024693,2]
[356359352,1742339438031,-11203.86275378,0.00024693,2]
[356359353,1742339438041,-524.31716385,0.00025486,4]
[356359354,1742339438050,-300.0,0.00025823,2]
[356359355,1742339438060,-200.0,0.00025823,10]
[356359356,1742339438070,-500.0,0.00025824,2]
[356359357,1742339438080,-367.23117525,0.00025824,2]
[356359358,1742339438089,-857.44,0.00025847,2]
[356359359,1742339438099,-524.31716385,0.00026279,4]
[356359360,1742339438108,-150.0,0.00026826,2]
[356359361,1742339438120,-156.05,0.00026849,2]
[356359362,1742339438130,-609.99,0.00026849,2]
[356359364,1742339438140,-500.0,0.00027,60]
[356359365,1742339438149,-1036.8258618,0.00027,28]
[356359366,1742339438158,-509.82,0.00027014,30]
[356359367,1742339438167,-524.31716385,0.00027072,4]
[356359369,1742339438177,-171.32,0.00027208,2]
[356359370,1742339438187,-753.81935461,0.00027209,2]
[356359371,1742339438198,-770.01522852,0.00027209,2]
[356359372,1742339438222,-413.385,0.00027209,2]
[356359373,1742339438234,-942.37,0.00027209,2]
[356359374,1742339438257,-11501.18951673,0.00027209,2]
[356359379,1742339440116,-275.36352451,0.00027209,2]
[356359380,1742339440151,-4430.7014266,0.00027209,2]
[356359381,1742339440184,-1166.59594903,0.00027209,2]
[356359383,1742339440194,-491.99627324,0.00027209,2]
[356359385,1742339440206,-291.35499906,0.00027209,2]
[356359386,1742339440218,-410.43876194,0.00027209,2]
[356359405,1742339443151,-686.0,0.00027209,2]
[356359406,1742339443163,-120.20996576,0.00027209,2]
[356359407,1742339443173,-201.9050151,0.00027397,2]
[356359408,1742339443183,-250.0,0.00027471,2]
[356359409,1742339443193,-470.36320466,0.00027541,2]
[356359410,1742339443202,-150.77,0.00027542,2]
[356359411,1742339443212,-5567.56,0.00027542,2]
[356359412,1742339443222,-150.0,0.00027543,2]
[356359413,1742339443232,-929.0,0.00027659,2]
[356359414,1742339443242,-524.31716385,0.00027866,4]
[356359415,1742339443251,-2000.0,0.00027894,120]
[356359416,1742339443261,-200.0,0.0002791,2]
[356359417,1742339443272,-542.61,0.00027943,2]
[356359418,1742339443282,-420.0,0.00027951,2]
[356359419,1742339443292,-900.0,0.00028,29]
[356359420,1742339443302,-500.0,0.00028,30]
[356359421,1742339443312,-857.44,0.00028111,2]
[356359422,1742339443321,-150.0,0.0002826,2]
[356359423,1742339443331,-150.0,0.00028426,2]
[356359424,1742339443341,-524.31716385,0.00028659,5]
[356359425,1742339443351,-758.6731,0.0002868,2]
[356359426,1742339443361,-6787.8468,0.0002868,2]
[356359427,1742339443371,-404.70628734,0.00028689,2]
[356359428,1742339443380,-2637.63232666,0.0002869,2]
[356359429,1742339443390,-2000.0,0.0002869,120]
[356359430,1742339443399,-222.0,0.0002869,2]
[356359431,1742339443409,-217.11044784,0.000287,2]
[356359432,1742339443419,-655.4975,0.000287,2]
[356359433,1742339443428,-1500.0,0.000287,10]
[356359434,1742339443438,-463.84316739,0.00028778,2]
[356359435,1742339443448,-152.05,0.0002878,2]
[356359436,1742339443458,-814.741,0.00028789,20]
[356359437,1742339443468,-10194.20620814,0.0002879,2]
[356359438,1742339443480,-2494.245,0.0002879,2]
[356359442,1742339444011,-542.66915189,0.0002879,2]
[356359443,1742339444023,-11781.64261542,0.0002879,2]
[356359444,1742339444034,-13368.19984244,0.0002879,2]
[356359445,1742339444046,-3069.76126993,0.0002879,2]
[356359446,1742339444057,-1879.62710007,0.0002879,2]
[356359447,1742339444069,-11761.57763029,0.0002879,2]
[356359448,1742339444080,-14446.45335528,0.0002879,2]
[356359449,1742339444095,-6414.789155,0.0002879,2]
[356359450,1742339445975,-3522.39415,0.0002879,2]
[356359451,1742339446150,-15566.18915719,0.0002879,2]
[356359452,1742339446160,-157.9812,0.0002879,42]
[356359453,1742339446170,-452527.517333,0.0002879,2]
[356359454,1742339446179,-151435.80196082,0.0002879,2]
[356359478,1742339448134,-169336.36883018,0.0002879,2]
[356359479,1742339448145,-152.05,0.0002879,2]
[356359480,1742339448155,-152.05,0.0002879,2]
[356359481,1742339448165,-1000000.0,0.000288,30]
[356359482,1742339448175,-723.97,0.000288,2]
[356359483,1742339448186,-500.0,0.000288,2]
[356359484,1742339448195,-500.0,0.000288,2]
[356359485,1742339448205,-500.0,0.000288,2]
[356359486,1742339448215,-500.0,0.000288,2]
[356359487,1742339448225,-500.0,0.000288,2]
[356359488,1742339448235,-500.0,0.000288,2]
[356359489,1742339448245,-500.0,0.000288,2]
[356359490,1742339448255,-500.0,0.000288,2]
[356359491,1742339448264,-500.0,0.000288,2]
[356359492,1742339448274,-500.0,0.000288,2]
[356359493,1742339448283,-500.0,0.000288,2]
[356359494,1742339448292,-500.0,0.000288,2]
[356359495,1742339448302,-500.0,0.000288,2]
[356359496,1742339448311,-500.0,0.000288,2]
[356359497,1742339448321,-500.0,0.000288,2]
[356359498,1742339448330,-500.0,0.000288,2]
[356359499,1742339448340,-500.0,0.000288,2]
[356359500,1742339448350,-500.0,0.000288,2]
[356359501,1742339448359,-500.0,0.000288,2]
[356359502,1742339448369,-500.0,0.000288,2]
[356359503,1742339448379,-500.0,0.000288,2]
[356359504,1742339448388,-500.0,0.000288,2]
[356359505,1742339448397,-500.0,0.000288,2]
[356359506,1742339448407,-500.0,0.000288,2]
[356359507,1742339448416,-500.0,0.000288,2]
[356359508,1742339448425,-500.0,0.000288,2]
[356359509,1742339448435,-500.0,0.000288,2]
[356359510,1742339448444,-500.0,0.000288,2]
[356359511,1742339448454,-500.0,0.000288,2]
[356359512,1742339448463,-500.0,0.000288,2]
[356359513,1742339448473,-500.0,0.000288,2]
[356359514,1742339448483,-500.0,0.000288,2]
[356359515,1742339448492,-500.0,0.000288,2]
[356359516,1742339448502,-500.0,0.000288,2]
[356359517,1742339448511,-500.0,0.000288,2]
[356359518,1742339448520,-500.0,0.000288,2]
[356359519,1742339448530,-500.0,0.000288,2]
[356359520,1742339448539,-500.0,0.000288,2]
[356359521,1742339448549,-500.0,0.000288,2]
[356359522,1742339448558,-500.0,0.000288,2]
[356359523,1742339448567,-500.0,0.000288,2]
[356359524,1742339448577,-500.0,0.000288,2]
[356359525,1742339448586,-500.0,0.000288,2]
[356359526,1742339448595,-500.0,0.000288,2]
[356359527,1742339448607,-500.0,0.000288,2]
[356359528,1742339448616,-500.0,0.000288,2]
[356359529,1742339448626,-500.0,0.000288,2]
[356359530,1742339448635,-500.0,0.000288,2]
[356359531,1742339448645,-500.0,0.000288,2]
[356359532,1742339448654,-500.0,0.000288,2]
[356359533,1742339448663,-500.0,0.000288,2]
[356359534,1742339448673,-500.0,0.000288,2]
[356359535,1742339448682,-500.0,0.000288,2]
[356359536,1742339448692,-500.0,0.000288,2]
[356359537,1742339448701,-500.0,0.000288,2]
[356359538,1742339448710,-500.0,0.000288,2]
[356359539,1742339448719,-500.0,0.000288,2]
[356359540,1742339448729,-500.0,0.000288,2]
[356359541,1742339448738,-500.0,0.000288,2]
[356359542,1742339448747,-500.0,0.000288,2]
[356359543,1742339448756,-500.0,0.000288,2]
[356359544,1742339448769,-500.0,0.000288,2]
[356359545,1742339448778,-500.0,0.000288,2]
[356359546,1742339448788,-500.0,0.000288,2]
[356359547,1742339448798,-500.0,0.000288,2]
[356359548,1742339448808,-500.0,0.000288,2]
[356359549,1742339448817,-500.0,0.000288,2]
[356359550,1742339448827,-500.0,0.000288,2]
[356359551,1742339448837,-500.0,0.000288,2]
[356359552,1742339448849,-500.0,0.000288,2]
[356359553,1742339448859,-500.0,0.000288,2]
[356359554,1742339448868,-500.0,0.000288,2]
[356359555,1742339448878,-500.0,0.000288,2]
[356359556,1742339448887,-500.0,0.000288,2]
[356359557,1742339448896,-500.0,0.000288,2]
[356359558,1742339448905,-500.0,0.000288,2]
[356359559,1742339448915,-500.0,0.000288,2]
[356359560,1742339448925,-500.0,0.000288,2]
[356359561,1742339448934,-500.0,0.000288,2]
[356359562,1742339448944,-500.0,0.000288,2]
[356359563,1742339448954,-500.0,0.000288,2]
[356359564,1742339448963,-500.0,0.000288,2]
[356359565,1742339448972,-500.0,0.000288,2]
[356359566,1742339448982,-500.0,0.000288,2]
[356359567,1742339448991,-500.0,0.000288,2]
[356359568,1742339449001,-3000.0,0.000288,10]
[356359569,1742339449010,-4500.0,0.000289,10]
[356359570,1742339449020,-150.0,0.00028976,2]
[356359571,1742339449029,-600.0,0.00029,2]
[356359572,1742339449039,-900.0,0.00029,30]
[356359573,1742339449049,-900.0,0.00029,11]
[356359574,1742339449058,-243.52062499,0.00029,11]
[356359575,1742339449068,-1169.29422743,0.00029041,120]
[356359576,1742339449078,-524.31716385,0.00029452,5]
[356359577,1742339449087,-404.70628728,0.00029478,2]
[356359578,1742339449096,-700.0,0.000296,30]
[356359579,1742339449107,-750.61,0.000296,30]
[356359580,1742339449116,-300.0,0.000296,30]
[356359581,1742339449126,-450.6,0.000296,30]
[356359582,1742339449135,-258.42,0.00029647,2]
[356359583,1742339449145,-150.0,0.00029693,2]
[356359584,1742339449154,-150.0,0.00029796,2]
[356359585,1742339449163,-272.599614,0.000298,18]
[356359586,1742339449172,-420.0,0.00029863,2]
[356359587,1742339449181,-22626.3758667,0.0002989,2]
[356359588,1742339449191,-723.97,0.000299,2]
[356359589,1742339449200,-900.0,0.0003,31]
[356359590,1742339449210,-211.0,0.0003,2]
[356359591,1742339449219,-524.31716385,0.00030245,5]
[356359592,1742339449229,-587.0,0.00030255,2]
[356359593,1742339449238,-404.70628728,0.00030267,2]
[356359594,1742339449248,-857.44,0.00030375,2]
[356359595,1742339449258,-150.0,0.00030409,2]
[356359596,1742339449267,-217.11044778,0.00030548,2]
[356359597,1742339449277,-214.53400734,0.00030685,2]
[356359598,1742339449286,-1500.0,0.000307,2]
[356359599,1742339449295,-650.0,0.00031,2]
[356359600,1742339449305,-900.0,0.00031,32]
[356359601,1742339449314,-200.0,0.00031015,2]
[356359602,1742339449323,-258.42,0.00031017,2]
[356359603,1742339449333,-524.31716385,0.00031038,5]
[356359604,1742339449342,-404.70628728,0.00031056,2]
[356359605,1742339449351,-723.97,0.000311,2]
[356359606,1742339449361,-150.0,0.00031126,2]
[356359607,1742339449370,-1274.0,0.00031163,120]
[356359608,1742339449379,-1000.0,0.00031461,30]
[356359609,1742339449389,-1000.0,0.00031461,30]
[356359610,1742339449398,-158.8,0.00031466,2]
[356359611,1742339449407,-374.0,0.00031466,5]
[356359612,1742339449417,-509.82,0.00031492,30]
[356359613,1742339449426,-21384.8113861,0.00031821,2]
[356359614,1742339449435,-524.31716385,0.00031831,6]
[356359615,1742339449444,-150.0,0.00031843,2]
[356359616,1742339449454,-404.70628728,0.00031845,2]
[356359617,1742339449463,-900.0,0.00032,33]
[356359618,1742339449472,-2021.50627539,0.0003238,30]
[356359619,1742339449482,-258.42,0.00032387,2]
[356359620,1742339449491,-217.11044778,0.00032396,2]
[356359621,1742339449500,-723.97,0.000324,2]
[356359622,1742339449510,-151.031907,0.00032498,120]
[356359623,1742339449519,-150.0,0.00032559,2]
[356359624,1742339449528,-524.31716385,0.00032624,6]
[356359625,1742339449537,-404.70628728,0.00032634,2]
[356359626,1742339449547,-857.44,0.00032639,2]
[356359627,1742339449557,-713.22,0.00032646,2]
[356359628,1742339449567,-609.99,0.00032646,2]
[356359629,1742339449576,-150.3215781,0.000327,2]
[356359630,1742339449586,-748.52182748,0.00032777,2]
[356359631,1742339449595,-445.42983548,0.00032777,2]
[356359632,1742339449604,-152.05,0.0003278,2]
[356359633,1742339449614,-45252.7517333,0.0003279,2]
[356359634,1742339449623,-278002.548019,0.0003279,2]
[356359635,1742339449632,-152.05,0.0003279,2]
[356359636,1742339449642,-1083590.00202563,0.000328,120]
[356359637,1742339449651,-392.447266,0.000328,7]
[356359638,1742339449660,-392.447266,0.000328,7]
[356359639,1742339449670,-4000.0,0.00032877,30]
[356359640,1742339449679,-6000.0,0.000329,12]
[356359641,1742339449689,-151.031907,0.00032998,120]
[356359642,1742339449698,-700.0,0.00033,2]
[356359643,1742339449707,-900.0,0.00033,34]
[356359644,1742339449716,-211.0,0.00033,2]
[356359645,1742339449725,-150.0,0.00033276,2]
[356359646,1742339449735,-3000.0,0.000334,2]
[356359647,1742339449744,-1500.0,0.000334,2]
[356359648,1742339449753,-524.31716385,0.00033417,6]
[356359649,1742339449763,-404.70628728,0.00033423,2]
[356359650,1742339449776,-151.031907,0.00033498,120]
[356359651,1742339449785,-723.97,0.000335,14]
[356359652,1742339449794,-1219.52,0.000335,31]
[356359653,1742339449803,-1219.52,0.000335,31]
[356359654,1742339449814,-1219.52,0.000335,31]
[356359655,1742339449823,-1219.52,0.000335,31]
[356359656,1742339449832,-1219.52,0.000335,31]
[356359657,1742339449843,-1219.52,0.000335,31]
[356359658,1742339449853,-1219.52,0.000335,31]
[356359659,1742339449862,-1219.52,0.000335,31]
[356359660,1742339449872,-1219.52,0.000335,31]
[356359661,1742339449881,-1219.52,0.000335,31]
[356359662,1742339449890,-1219.52,0.000335,31]
[356359663,1742339449900,-1219.52,0.000335,31]
[356359664,1742339449910,-258.42,0.00033757,2]
[356359665,1742339449919,-157.98121,0.0003379,42]
[356359666,1742339449928,-150.0,0.00033992,2]
[356359667,1742339449937,-151.031907,0.00033998,120]
[356359668,1742339449947,-900.0,0.00034,35]
[356359669,1742339449957,-171.32,0.0003401,2]
[356359670,1742339449967,-524.31716385,0.0003421,6]
[356359671,1742339449976,-404.70628728,0.00034212,2]
[356359672,1742339449985,-217.11044778,0.00034244,2]
[356359673,1742339449994,-151.031907,0.00034498,120]
[356359674,1742339450004,-150.0,0.00034548,10]
[356359675,1742339450014,-1000.0,0.00034661,30]
[356359676,1742339450024,-150.0,0.00034709,2]
[356359677,1742339450033,-156.05,0.00034716,2]
[356359678,1742339450043,-723.97,0.000348,14]
[356359679,1742339450192,-857.44,0.00034903,2]
[356359680,1742339450217,-151.031907,0.00034998,120]
[356359681,1742339450227,-750.0,0.00035,2]
[356359682,1742339450236,-900.0,0.00035,36]
[356359683,1742339450246,-5000.0,0.00035,2]
[356359684,1742339450255,-404.70628728,0.00035001,2]
[356359685,1742339450264,-524.31716385,0.00035003,7]
[356359686,1742339450274,-258.42,0.00035127,2]
[356359687,1742339450284,-1219.52,0.000353,31]
[356359688,1742339450293,-1219.52,0.000353,31]
[356359689,1742339450303,-1219.52,0.000353,31]
[356359690,1742339450312,-1219.52,0.000353,31]
[356359691,1742339450322,-1219.52,0.000353,31]
[356359692,1742339450331,-1219.52,0.000353,31]
[356359693,1742339450341,-1219.52,0.000353,31]
[356359694,1742339450351,-1219.52,0.000353,31]
[356359695,1742339450361,-1219.52,0.000353,31]
[356359696,1742339450371,-1219.52,0.000353,31]
[356359697,1742339450380,-1219.52,0.000353,31]
[356359698,1742339450389,-1219.52,0.000353,31]
[356359699,1742339450399,-1219.52,0.000353,31]
[356359700,1742339450408,-1219.52,0.000353,31]
[356359701,1742339450418,-1219.52,0.000353,31]
[356359702,1742339450427,-1219.52,0.000353,31]
[356359703,1742339450436,-1219.52,0.000353,31]
[356359704,1742339450446,-1219.52,0.000353,31]
[356359705,1742339450455,-1219.52,0.000353,31]
[356359706,1742339450465,-1219.52,0.000353,31]
[356359707,1742339450474,-1219.52,0.000353,31]
[356359708,1742339450483,-1219.52,0.000353,31]
[356359709,1742339450493,-1219.52,0.000353,31]
[356359710,1742339450502,-1219.52,0.000353,31]
[356359711,1742339450511,-150.0,0.00035426,2]
[356359712,1742339450522,-151.031907,0.00035498,120]
[356359713,1742339450531,-152.05,0.00035606,2]
[356359714,1742339450540,-158.8,0.00035616,2]
[356359715,1742339450549,-500.0,0.00035616,12]
[356359716,1742339450558,-660.95,0.00035616,12]
[356359717,1742339450568,-500.0,0.00035616,12]
[356359718,1742339450577,-520.86767617,0.00035616,12]
[356359719,1742339450586,-1089.18,0.00035616,12]
[356359720,1742339450595,-514.64875778,0.00035616,12]
[356359721,1742339450606,-500.0,0.00035616,10]
[356359722,1742339450615,-1280.18,0.00035616,12]
[356359723,1742339450624,-500.0,0.00035616,12]
[356359724,1742339450634,-500.0,0.00035616,12]
[356359725,1742339450643,-500.0,0.00035616,12]
[356359726,1742339450652,-500.0,0.00035616,12]
[356359727,1742339450662,-500.0,0.00035616,12]
[356359728,1742339450671,-500.0,0.00035616,12]
[356359729,1742339450681,-1000.0,0.00035616,12]
[356359730,1742339450690,-705.65,0.00035616,12]
[356359731,1742339450699,-500.0,0.00035616,12]
[356359732,1742339450709,-500.0,0.00035616,12]
[356359733,1742339450719,-500.0,0.00035616,12]
[356359734,1742339450728,-500.0,0.00035616,12]
[356359735,1742339450737,-500.0,0.00035616,12]
[356359736,1742339450747,-506.73797151,0.00035616,12]
[356359737,1742339450757,-500.0,0.00035616,12]
[356359738,1742339450772,-500.0,0.00035616,12]
[356359739,1742339450781,-500.0,0.00035616,12]
[356359740,1742339450791,-500.0,0.00035616,12]
[356359741,1742339450801,-354.71002236,0.00035616,12]
[356359742,1742339450811,-839.95,0.00035616,12]
[356359743,1742339450821,-376.5308529,0.00035616,12]
[356359744,1742339450831,-500.0,0.00035616,12]
[356359745,1742339450842,-500.0,0.00035616,12]
[356359746,1742339450852,-500.63108596,0.00035616,12]
[356359747,1742339450862,-500.0,0.00035616,12]
[356359748,1742339450871,-500.0,0.00035616,12]
[356359749,1742339450880,-500.0,0.00035616,12]
[356359750,1742339450889,-500.0,0.00035616,12]
[356359751,1742339450898,-500.0,0.00035616,12]
[356359752,1742339450908,-534.82181838,0.00035616,12]
[356359753,1742339450917,-500.0,0.00035616,12]
[356359754,1742339450926,-500.0,0.00035616,12]
[356359755,1742339450935,-500.0,0.00035616,12]
[356359756,1742339450944,-500.0,0.00035616,12]
[356359757,1742339450954,-500.0,0.00035616,12]
[356359758,1742339450963,-500.0,0.00035616,12]
[356359759,1742339450972,-500.0,0.00035616,12]
[356359760,1742339450982,-500.0,0.00035616,12]
[356359761,1742339450991,-500.0,0.00035616,12]
[356359762,1742339451001,-500.0,0.00035616,12]
[356359763,1742339451010,-500.0,0.00035616,12]
[356359764,1742339451020,-500.0,0.00035616,12]
[356359765,1742339451029,-550.7049651,0.00035616,12]
[356359766,1742339451039,-500.0,0.00035616,12]
[356359767,1742339451048,-623.91786517,0.00035616,12]
[356359768,1742339451058,-500.6623499,0.00035616,12]
[356359769,1742339451067,-500.0,0.00035616,12]
[356359770,1742339451077,-500.0,0.00035616,12]
[356359771,1742339451087,-500.0,0.00035616,12]
[356359772,1742339451096,-500.0,0.00035616,12]
[356359773,1742339451106,-586.59,0.00035616,12]
[356359774,1742339451115,-500.0,0.00035616,12]
[356359775,1742339451125,-500.0,0.00035616,12]
[356359776,1742339451134,-500.0,0.00035616,12]
[356359777,1742339451143,-500.0,0.00035616,12]
[356359778,1742339451153,-500.0,0.00035616,12]
[356359779,1742339451162,-500.0,0.00035616,12]
[356359780,1742339451172,-500.0,0.00035616,12]
[356359781,1742339451181,-321.83315858,0.00035616,12]
[356359782,1742339451191,-500.0,0.00035616,12]
[356359783,1742339451200,-659.86,0.00035616,12]
[356359784,1742339451210,-500.0,0.00035616,12]
[356359785,1742339451219,-500.0,0.00035616,12]
[356359786,1742339451229,-500.0,0.00035616,12]
[356359787,1742339451239,-500.0,0.00035616,12]
[356359788,1742339451248,-500.0,0.00035616,12]
[356359789,1742339451257,-500.0,0.00035616,12]
[356359790,1742339451267,-319.09726262,0.00035616,12]
[356359791,1742339451277,-500.0,0.00035616,12]
[356359792,1742339451287,-500.0,0.00035616,12]
[356359793,1742339451297,-500.0,0.00035616,12]
[356359794,1742339451308,-781.58,0.00035616,12]
[356359795,1742339451318,-500.0,0.00035616,12]
[356359796,1742339451327,-500.0,0.00035616,12]
[356359797,1742339451336,-500.0,0.00035616,12]
[356359798,1742339451346,-500.0,0.00035616,12]
[356359799,1742339451356,-500.0,0.00035616,12]
[356359800,1742339451365,-500.0,0.00035616,12]
[356359801,1742339451375,-500.0,0.00035616,12]
[356359802,1742339451384,-500.0,0.00035616,12]
[356359803,1742339451393,-578.43,0.00035616,12]
[356359804,1742339451403,-500.0,0.00035616,12]
[356359805,1742339451412,-500.0,0.00035616,7]
[356359806,1742339451421,-503.01731859,0.00035616,12]
[356359807,1742339451430,-716.41,0.00035616,12]
[356359808,1742339451440,-509.76142093,0.00035616,12]
[356359809,1742339451449,-500.0,0.00035616,12]
[356359810,1742339451459,-506.33663128,0.00035616,12]
[356359811,1742339451468,-500.0,0.00035616,12]
[356359812,1742339451477,-875.76,0.00035616,12]
[356359813,1742339451487,-500.0,0.00035616,12]
[356359814,1742339451496,-200.16310302,0.00035616,12]
[356359815,1742339451505,-500.0,0.00035616,12]
[356359816,1742339451515,-500.0,0.00035616,12]
[356359817,1742339451524,-500.0,0.00035616,12]
[356359818,1742339451533,-508.14740091,0.00035616,12]
[356359819,1742339451542,-500.0,0.00035616,12]
[356359820,1742339451552,-502.1372744,0.00035616,12]
[356359821,1742339451561,-500.0,0.00035616,12]
[356359822,1742339451571,-500.0,0.00035616,12]
[356359823,1742339451581,-500.0,0.00035616,12]
[356359824,1742339451591,-500.0,0.00035616,12]
[356359825,1742339451600,-500.0,0.00035616,12]
[356359826,1742339451610,-634.77562621,0.00035616,12]
[356359827,1742339451620,-500.0,0.00035616,12]
[356359828,1742339451630,-500.0,0.00035616,12]
[356359829,1742339451639,-500.0,0.00035616,12]
[356359830,1742339451648,-500.0,0.00035616,12]
[356359831,1742339451658,-500.0,0.00035616,12]
[356359832,1742339451668,-500.0,0.00035616,12]
[356359833,1742339451677,-208.85005873,0.00035616,12]
[356359834,1742339451687,-500.0,0.00035616,12]
[356359835,1742339451697,-500.0,0.00035616,12]
[356359836,1742339451707,-150.61391185,0.00035616,12]
[356359837,1742339451717,-211.33183389,0.00035616,12]
[356359838,1742339451727,-500.0,0.00035616,12]
[356359839,1742339451737,-500.0,0.00035616,12]
[356359840,1742339451747,-500.0,0.00035616,12]
[356359841,1742339451757,-500.0,0.00035616,12]
[356359842,1742339451773,-500.0,0.00035616,12]
[356359843,1742339451782,-5000.0,0.00035616,12]
[356359844,1742339451791,-500.0,0.00035616,12]
[356359845,1742339451800,-500.0,0.00035616,12]
[356359846,1742339451811,-1293.1,0.00035616,12]
[356359847,1742339451820,-500.0,0.00035616,2]
[356359848,1742339451829,-500.0,0.00035616,12]
[356359849,1742339451839,-554.73,0.00035616,12]
[356359850,1742339451849,-500.0,0.00035616,12]
[356359851,1742339451859,-500.0,0.00035616,12]
[356359852,1742339451869,-517.1879803,0.00035616,12]
[356359853,1742339451878,-500.0,0.00035616,12]
[356359854,1742339451888,-500.0,0.00035616,12]
[356359855,1742339451901,-500.0,0.00035616,2]
[356359856,1742339451911,-500.0,0.00035616,12]
[356359857,1742339451921,-500.0,0.00035616,12]
[356359858,1742339451932,-500.0,0.00035616,12]
[356359859,1742339451941,-614.04726748,0.00035616,12]
[356359860,1742339451950,-887.4,0.00035616,12]
[356359861,1742339451960,-500.0,0.00035616,12]
[356359862,1742339451969,-933.35,0.00035616,12]
[356359863,1742339451979,-500.0,0.00035616,2]
[356359864,1742339451988,-500.0,0.00035616,12]
[356359865,1742339451999,-500.0,0.00035616,12]
[356359866,1742339452009,-519.30363217,0.00035616,12]
[356359867,1742339452019,-500.0,0.00035616,12]
[356359868,1742339452028,-500.0,0.00035616,12]
[356359869,1742339452038,-533.87651498,0.00035616,12]
[356359870,1742339452047,-645.27,0.00035616,12]
[356359871,1742339452056,-501.32342859,0.00035616,12]
[356359872,1742339452066,-496.82927088,0.00035616,12]
[356359873,1742339452075,-511.60957081,0.00035616,12]
[356359874,1742339452085,-500.0,0.00035616,12]
[356359875,1742339452094,-505.32804362,0.00035616,12]
[356359876,1742339452103,-510.48623293,0.00035616,12]
[356359877,1742339452113,-1270.34,0.00035616,12]
[356359878,1742339452123,-500.0,0.00035616,12]
[356359879,1742339452132,-500.0,0.00035616,12]
[356359880,1742339452141,-635.6,0.00035616,12]
[356359881,1742339452151,-325.79089358,0.00035616,12]
[356359882,1742339452160,-509.54730262,0.00035616,12]
[356359883,1742339452169,-500.0,0.00035616,12]
[356359884,1742339452179,-500.0,0.00035616,12]
[356359885,1742339452188,-500.0,0.00035616,12]
[356359886,1742339452197,-502.52043117,0.00035616,12]
[356359887,1742339452207,-500.0,0.00035616,12]
[356359888,1742339452216,-500.0,0.00035616,12]
[356359889,1742339452225,-500.0,0.00035616,12]
[356359890,1742339452234,-500.0,0.00035616,12]
[356359891,1742339452244,-500.0,0.00035616,12]
[356359892,1742339452253,-500.0,0.00035616,12]
[356359893,1742339452263,-500.0,0.00035616,12]
[356359894,1742339452272,-500.0,0.00035616,12]